bitfinex-derivatives/quotes_ETHF0:USTF0_20250702
["timestamp","ask_amount","ask_price","bid_price","bid_amount"]
[1751493722038,38.58178214,2596.8,2596.5,0.76989]
[1751493722039,0.76987,2596.7,2596.5,0.76989]
[1751493722230,0.76992,2596.5,2596.2,0.6704]
[1751493722434,0.76998,2596.3,2596.2,0.6704]
[1751493722637,38.58178214,2596.4,2596.2,1.44039]
[1751493722836,0.76998,2596.3,2596.2,1.44039]
[1751493723236,35.261,2596.4,2596.1,0.77001]
[1751493723437,2.16686,2596.4,2596.3,0.76998]
[1751493723637,51.67664214,2596.4,2596.2,0.76998]
[1751493723836,48.35586,2596.4,2596.2,0.76998]
[1751493724037,48.35586,2596.4,2596.3,0.76998]
[1751493724238,47.5859,2596.4,2596.3,0.76998]
[1751493724438,48.35585,2596.4,2596.0,0.6704]
[1751493724741,48.35585,2596.4,2596.2,0.77]
[1751493725436,47.5859,2596.4,2596.0,0.6704]
[1751493725640,48.35585,2596.4,2596.2,0.76999]
[1751493725841,0.76998,2596.3,2596.1,0.77002]
[1751493726140,36.03301,2596.2,2596.0,1.44044]
[1751493726337,35.263,2596.2,2596.1,0.77004]
[1751493726532,35.263,2596.2,2596.0,0.6704]
[1751493726737,35.263,2596.2,2596.1,0.77004]
[1751493727137,0.77006,2596.1,2595.9,0.77009]
[1751493727335,35.267,2596.0,2595.9,0.77009]
[1751493728338,35.267,2596.0,2595.8,0.77011]
[1751493728540,0.77017,2595.7,2595.2,4.20904694]
[1751493728741,0.77021,2595.5,2595.4,0.6971]
[1751493729443,1.369,2595.5,2595.4,1.46733]
[1751493729639,1.369,2595.5,2595.1,0.6897]
[1751493729845,6.91126418,2595.3,2594.6,2.28335694]
[1751493730143,10.93,2595.2,2594.8,0.77039]
[1751493730344,6.91126418,2595.0,2594.6,1.40547]
[1751493730543,2.1394,2594.9,2594.6,1.40547]
[1751493730744,35.269,2594.8,2594.6,1.40547]
[1751493730938,36.6338,2594.8,2594.6,0.635]
[1751493731144,37.40422,2594.8,2594.6,0.635]
[1751493731343,6.91126418,2594.7,2594.0,0.31340213]
[1751493731543,6.91126418,2594.4,2593.8,0.66]
[1751493731744,35.269,2594.3,2593.7,0.635]
[1751493731946,37.40439,2594.3,2593.7,0.635]
[1751493732146,36.6338,2594.3,2593.7,0.635]
[1751493732347,0.7706,2594.2,2593.9,0.77067]
[1751493732546,66.394,2594.6,2593.9,0.77067]
[1751493732547,10.93,2594.5,2594.4,0.77054]
[1751493732743,8.35567418,2594.9,2593.7,7.85599086]
[1751493732744,35.286,2594.7,2594.5,0.77051]
[1751493733040,35.298,2595.3,2594.6,1.92621]
[1751493733240,35.298,2595.3,2594.7,1.92613]
[1751493733447,1.3648,2595.2,2595.1,0.77033]
[1751493734648,8.33106418,2595.6,2595.1,0.77033]
[1751493734649,55.464,2596.1,2595.1,5.0]
[1751493734841,10.932,2596.7,2595.8,1.92532]
[1751493735042,12.8459,2596.9,2596.1,1.92509]
[1751493735240,12.8459,2596.9,2596.7,0.76986]
[1751493735241,35.378,2596.8,2596.7,0.76986]
[1751493735543,35.378,2596.8,2596.0,0.30929094]
[1751493735848,1.2643,2596.7,2596.3,0.76996]
[1751493736047,2.03417,2596.7,2596.3,0.76996]
[1751493736243,0.7699,2596.6,2596.2,0.76999]
[1751493736450,37.46323,2596.5,2596.1,0.77001]
[1751493736743,36.19696,2596.4,2596.0,0.77005]
[1751493736948,1.283,2596.3,2596.0,0.77005]
[1751493737143,12.215,2596.3,2596.0,0.77005]
[1751493737441,1.283,2596.3,2596.0,0.77005]
[1751493737647,35.426,2596.2,2596.0,0.77005]
[1751493738747,35.426,2596.2,2595.9,0.6524]
[1751493738748,36.19601,2596.2,2595.9,0.77007]
[1751493738942,1.283,2596.1,2595.8,0.77011]
[1751493739143,1.283,2596.1,2595.7,0.77014]
[1751493739144,0.77007,2596.0,2595.7,0.77014]
[1751493739343,42.13000183,2595.9,2595.4,0.77022]
[1751493739542,5.43100183,2595.6,2595.4,0.77023]
[1751493739745,36.7,2595.5,2595.4,0.77023]
[1751493740548,36.7,2595.5,2595.4,0.77024]
[1751493741349,55.468,2596.4,2595.0,5.43100183]
[1751493741549,55.468,2596.4,2595.8,1.92532]
[1751493741749,10.932,2597.1,2596.9,0.76979]
[1751493741956,0.90585318,2597.0,2596.9,0.76979]
[1751493742351,36.37885318,2597.0,2596.9,0.76979]
[1751493742753,36.24278,2597.0,2596.6,0.6998]
[1751493742952,5.43100183,2597.1,2597.0,0.76977]
[1751493743150,51.83000183,2597.1,2597.0,0.76977]
[1751493743451,52.59975183,2597.1,2596.8,0.76981]
[1751493743653,51.83000183,2597.1,2596.6,0.6998]
[1751493743956,0.76978,2597.0,2596.7,0.76986]
[1751493744156,46.399,2597.1,2596.8,0.76983]
[1751493744357,47.16875,2597.1,2596.8,0.76982]
[1751493744556,0.76977,2597.0,2596.7,0.76984]
[1751493744854,46.399,2597.1,2596.6,0.6998]
[1751493745048,0.76978,2597.0,2596.7,0.76983]
[1751493745451,0.76984,2596.8,2596.5,0.76991]
[1751493745750,0.76984,2596.8,2596.3,1.2728]
[1751493745751,35.452,2596.7,2596.6,0.76986]
[1751493746457,35.452,2596.7,2596.6,0.76989]
[1751493747054,55.471,2597.3,2596.6,6.92467]
[1751493747254,10.929,2597.2,2596.8,1.92458]
[1751493747459,10.929,2597.2,2597.1,0.76974]
[1751493747852,46.381,2597.2,2597.1,0.76974]
[1751493748054,51.381,2597.2,2595.9,2.28335694]
[1751493748257,6.0392095,2597.0,2596.1,0.6338]
[1751493748457,46.399,2596.9,2596.2,1.3003]
[1751493748653,61.5102095,2597.3,2596.2,1.3003]
[1751493748654,35.481,2597.0,2596.7,0.76986]
[1751493748958,0.6511,2597.6,2596.9,0.7698]
[1751493749161,35.506,2597.9,2597.4,1.92412]
[1751493749462,10.929,2598.2,2597.4,1.92412]
[1751493749463,11.5607,2598.2,2598.1,0.76944]
[1751493749761,47.0787,2598.2,2597.5,1.9593]
[1751493749961,1.92361,2598.1,2597.0,1.92438]
[1751493750160,53.1179095,2598.2,2596.8,19.5409795]
[1751493750161,0.76961,2597.6,2597.4,0.76965]
[1751493750358,35.52,2597.5,2597.1,0.6338]
[1751493750660,36.28964,2597.5,2597.2,0.7697]
[1751493750859,36.28964,2597.5,2597.1,0.6338]
[1751493750860,35.52,2597.5,2597.1,0.6338]
[1751493751057,1.92416,2597.4,2596.3,2.28335694]
[1751493751358,55.455,2597.6,2597.5,0.76962]
[1751493751565,91.051,2597.6,2597.5,0.76962]
[1751493751861,0.6789,2598.0,2597.2,1.92424]
[1751493752065,46.53,2597.9,2597.8,0.76951]
[1751493752260,46.53,2597.9,2597.4,0.76963]
[1751493752460,46.53,2597.9,2597.3,0.76966]
[1751493752661,0.6789,2598.0,2597.2,0.6927]
[1751493752863,57.37842,2598.4,2597.2,0.6927]
[1751493752864,0.76939,2598.3,2597.2,0.6927]
[1751493753064,55.455,2598.4,2598.1,0.76943]
[1751493753065,46.557,2598.2,2598.1,0.76943]
[1751493753360,55.455,2598.4,2598.3,0.76938]
[1751493753664,35.63,2598.4,2598.3,0.76938]
[1751493753857,35.63,2598.4,2597.6,0.6665]
[1751493754058,0.76952,2597.9,2597.6,1.43608]
[1751493754259,35.65,2597.9,2597.6,0.6665]
[1751493754459,36.41951,2597.9,2597.6,1.43607]
[1751493754865,36.41951,2597.9,2597.7,0.76956]
[1751493755062,0.6789,2598.6,2598.5,0.76932]
[1751493755262,10.927,2598.9,2598.8,0.76923]
[1751493755463,46.667,2598.9,2598.8,0.76923]
[1751493755661,46.667,2598.9,2598.7,0.76925]
[1751493756364,6.0392095,2599.8,2599.3,0.76907]
[1751493756568,48.0076,2599.5,2599.3,0.76907]
[1751493756765,48.77663,2599.5,2599.3,0.76907]
[1751493756958,48.0076,2599.5,2599.3,0.76907]
[1751493757164,1.92265,2599.4,2598.1,1.92357]
[1751493757363,0.76918,2599.0,2598.7,0.76925]
[1751493757562,35.787,2598.9,2598.7,0.76925]
[1751493757867,0.76925,2598.8,2598.3,0.6798]
[1751493758059,1.3316,2598.8,2598.3,0.6798]
[1751493758458,1.3316,2598.8,2598.5,0.76932]
[1751493758660,35.783,2598.7,2598.3,0.6798]
[1751493758856,35.78,2598.7,2598.3,0.6798]
[1751493759060,35.78,2598.7,2598.5,0.76931]
[1751493759257,35.78,2598.8,2598.6,0.76929]
[1751493759667,36.54924,2598.8,2598.4,1.2829]
[1751493759865,35.78,2598.8,2598.6,0.76929]
[1751493760266,35.768,2598.8,2598.4,1.2829]
[1751493760564,35.765,2599.0,2598.7,0.76926]
[1751493760765,35.765,2599.0,2598.4,1.2829]
[1751493760959,0.76941,2598.2,2598.1,0.6437]
[1751493761159,1.3527,2598.9,2597.8,1.92384]
[1751493761365,10.924,2598.8,2598.5,0.76931]
[1751493761559,0.7693,2598.6,2597.9,3.23935]
[1751493761759,0.76937,2598.4,2598.2,0.7694]
[1751493761959,1.3527,2598.5,2597.9,1.3156]
[1751493762159,11.101,2598.8,2597.9,7.3548095]
[1751493762468,35.829,2598.7,2598.0,1.92369]
[1751493762668,0.76934,2598.5,2598.3,0.76937]
[1751493762868,37.1817,2598.7,2598.0,0.76946]
[1751493763060,0.7693,2598.6,2598.4,0.76935]
[1751493763265,35.851,2598.6,2598.4,0.76935]
[1751493763460,35.851,2598.6,2597.8,1.3156]
[1751493763667,0.76936,2598.4,2598.2,0.76941]
[1751493763866,37.2037,2598.6,2598.0,1.92369]
[1751493764067,0.76933,2598.5,2598.3,0.76937]
[1751493764266,1.286,2598.5,2598.3,0.76937]
[1751493764464,1.286,2598.5,2598.2,0.7694]
[1751493764669,0.76937,2598.4,2597.8,1.3156]
[1751493764970,0.76939,2598.3,2598.1,0.76943]
[1751493765268,1.9183,2598.5,2598.3,0.76937]
[1751493765467,2.68763,2598.5,2598.3,0.76937]
[1751493765969,0.76936,2598.4,2598.2,0.76939]
[1751493766166,0.76944,2598.2,2597.9,0.76948]
[1751493766465,37.90346,2598.1,2597.6,0.6675]
[1751493766671,48.99246,2598.1,2597.6,0.6675]
[1751493766971,48.99246,2598.1,2597.9,0.7695]
[1751493767165,48.99246,2598.1,2597.8,0.76951]
[1751493767371,48.223,2598.1,2597.3,0.6707]
[1751493767561,0.6323,2598.5,2597.3,6.7099095]
[1751493767766,0.6323,2598.5,2597.6,7.34509357]
[1751493767966,49.07847,2598.4,2598.2,0.76941]
[1751493768564,48.3091,2598.4,2598.3,0.76938]
[1751493768763,35.849,2598.4,2598.3,0.76938]
[1751493768976,44.6448,2599.8,2598.6,0.7693]
[1751493769269,2.0217,2599.0,2598.8,0.76922]
[1751493769460,2.0217,2599.0,2598.1,0.6713]
[1751493769461,35.86,2598.9,2598.1,0.6713]
[1751493769665,0.76929,2598.7,2598.4,0.76935]
[1751493769871,13.23341,2598.6,2598.4,0.76934]
[1751493770270,12.4641,2598.6,2598.5,0.76933]
[1751493770772,11.101,2598.6,2598.5,0.76933]
[1751493771966,11.101,2598.6,2598.4,0.76934]
[1751493772573,11.101,2598.6,2598.5,0.76933]
[1751493773070,11.101,2598.7,2598.6,0.76929]
[1751493773271,47.005,2598.7,2598.6,0.76929]
[1751493773870,48.3234,2598.7,2598.6,0.76929]
[1751493774071,48.3234,2598.7,2598.1,1.9912]
[1751493774271,48.3234,2598.7,2598.6,0.7693]
[1751493774671,48.3234,2598.7,2598.5,0.76931]
[1751493774867,0.7693,2598.6,2598.4,0.76934]
[1751493775170,1.3184,2598.5,2598.1,0.6713]
[1751493775471,1.3184,2598.5,2598.4,0.76936]
[1751493776475,1.3184,2598.5,2598.1,0.6713]
[1751493776671,5.42110357,2598.3,2597.7,2.28335694]
[1751493776975,35.901,2598.2,2598.1,0.76944]
[1751493777773,1.3286,2598.4,2598.3,0.76938]
[1751493778069,35.929,2598.4,2598.3,0.76938]
[1751493778578,37.2576,2598.4,2598.3,0.76938]
[1751493779267,1.45062,2598.9,2598.2,1.92354]
[1751493779468,35.918,2598.9,2598.6,0.76929]
[1751493779668,0.76924,2598.8,2598.7,0.76924]
[1751493779873,1.3296,2598.8,2598.7,0.76924]
[1751493780275,1.3296,2598.8,2598.1,2.95955694]
[1751493780474,1.3296,2598.8,2598.1,0.6762]
[1751493780673,0.7693,2598.6,2598.4,0.76933]
[1751493780873,37.2766,2598.5,2598.4,0.76933]
[1751493781074,38.04593,2598.5,2598.3,0.76936]
[1751493781277,37.2766,2598.5,2598.1,0.6762]
[1751493781482,0.7694,2598.3,2598.1,0.76942]
[1751493781683,48.97036,2598.5,2597.9,2.28335694]
[1751493781878,0.7002,2598.2,2597.8,2.28335694]
[1751493782079,0.7002,2598.2,2598.1,0.76944]
[1751493782275,0.6355,2598.7,2598.1,0.76944]
[1751493782482,35.964,2598.7,2598.2,1.92348]
[1751493782682,35.964,2598.7,2598.6,0.7693]
[1751493783087,36.73327,2598.7,2598.5,0.76931]
[1751493783282,36.73327,2598.7,2598.2,2.5809]
[1751493783283,0.7002,2598.8,2598.3,1.92344]
[1751493783483,12.56944,2598.8,2598.7,0.76927]
[1751493783784,48.55544,2598.8,2598.6,0.76928]
[1751493783985,48.55544,2598.8,2598.7,0.76927]
[1751493784381,0.76928,2598.7,2598.2,4.86425694]
[1751493784582,47.7862,2598.8,2598.4,0.76934]
[1751493784787,49.70932,2598.8,2598.3,0.76937]
[1751493784983,0.90754384,2598.7,2598.4,0.76935]
[1751493785188,0.7693,2598.6,2598.4,0.76935]
[1751493785587,0.76937,2598.4,2598.2,0.6574]
[1751493785784,36.74937,2598.4,2598.3,0.76937]
[1751493785991,35.98,2598.4,2598.3,0.76937]
[1751493786186,0.7002,2598.8,2598.3,1.92345]
[1751493786388,47.073,2598.7,2598.4,0.76936]
[1751493786586,47.073,2598.7,2598.3,1.92345]
[1751493786587,47.073,2598.7,2598.6,0.7693]
[1751493786792,47.84227,2598.7,2598.6,0.7693]
[1751493787188,47.073,2598.7,2598.6,0.7693]
[1751493787684,1.46944,2598.8,2598.7,0.76927]
[1751493787888,48.6699318,2598.8,2598.3,0.6575]
[1751493788194,0.7002,2598.8,2598.7,0.76927]
[1751493788489,48.6599776,2598.8,2598.7,0.76927]
[1751493789493,0.9077776,2598.8,2598.7,0.76927]
[1751493789786,35.954,2598.8,2598.7,0.76927]
[1751493791495,47.072,2598.8,2598.7,0.76927]
[1751493792897,0.7693,2598.6,2598.5,2.28335694]
[1751493793092,0.76936,2598.4,2598.3,2.28335694]
[1751493793292,0.76938,2598.3,2598.1,3.05278694]
[1751493793500,41.38410357,2598.4,2598.3,0.76938]
[1751493793692,35.963,2598.4,2598.3,0.76938]
[1751493794092,0.6383,2598.7,2598.1,1.92358]
[1751493794296,36.74232,2598.6,2598.4,0.76934]
[1751493794496,36.7423,2598.6,2598.4,0.76935]
[1751493794696,35.973,2598.6,2598.5,0.76933]
[1751493795394,3.84398,2600.4,2598.2,2.28335694]
[1751493795594,0.6611,2599.1,2598.5,2.28335694]
[1751493795897,1.68137548,2599.0,2598.8,0.76922]
[1751493796092,35.984,2598.9,2598.8,0.76922]
[1751493796496,37.3134,2598.9,2598.8,0.76922]
[1751493798589,0.6611,2599.1,2599.0,0.76918]
[1751493798795,49.95830296,2599.1,2599.0,0.76918]
[1751493798992,49.95530296,2599.1,2599.0,0.76918]
[1751493799199,3.06282434,2599.9,2599.5,0.76903]
[1751493799394,47.118,2599.6,2599.5,0.76903]
[1751493799795,1.9397,2599.7,2599.6,0.769]
[1751493799994,11.145,2599.6,2599.5,0.76903]
[1751493800298,0.6692,2599.7,2599.6,0.769]
[1751493800500,11.8142,2599.7,2599.6,0.769]
[1751493800696,1.376,2600.0,2599.3,4.49003]
[1751493800902,1.376,2600.0,2599.9,0.76891]
[1751493801101,37.361,2600.0,2599.9,0.76891]
[1751493801497,37.392,2600.0,2599.9,0.76891]
[1751493801694,37.392,2600.0,2599.5,1.92255]
[1751493801900,37.392,2600.0,2599.9,0.76891]
[1751493802400,37.392,2600.0,2599.8,0.76892]
[1751493802706,38.16088,2600.0,2599.8,0.76892]
[1751493803007,37.392,2600.0,2599.8,0.76892]
[1751493803199,37.392,2600.0,2599.9,0.76891]
[1751493803704,38.16088,2600.0,2599.8,0.76893]
[1751493804106,0.76891,2599.9,2599.7,0.76895]
[1751493804298,37.392,2600.0,2599.3,2.92795694]
[1751493804504,1.3518,2599.9,2599.3,2.92795694]
[1751493804704,1.3518,2599.9,2599.6,0.76897]
[1751493804904,2.12071,2599.9,2599.6,0.76897]
[1751493805301,0.76902,2599.6,2599.4,0.76906]
[1751493805503,0.76904,2599.5,2599.3,1.41367]
[1751493805801,0.76905,2599.5,2599.3,0.6446]
[1751493806006,0.76906,2599.4,2599.2,0.6586]
[1751493806198,2.12085,2599.5,2599.2,1.42771]
[1751493806403,2.12085,2599.5,2599.3,0.76907]
[1751493807008,1.3518,2599.5,2599.3,0.76909]
[1751493807203,1.3518,2599.5,2599.2,0.6586]
[1751493807404,2.12085,2599.5,2599.3,0.76909]
[1751493808009,1.43278,2599.7,2599.5,0.76902]
[1751493808207,0.6638,2599.7,2599.6,0.769]
[1751493808406,36.6128,2599.7,2599.6,0.769]
[1751493808802,35.949,2599.7,2599.6,0.769]
[1751493809007,0.6393,2600.1,2599.4,1.92262]
[1751493809205,0.6393,2600.1,2599.8,0.76894]
[1751493809206,35.949,2599.9,2599.8,0.76894]
[1751493809406,36.71792,2599.9,2599.4,3.92312]
[1751493809609,36.71792,2599.9,2599.7,0.76895]
[1751493810206,35.949,2599.9,2599.4,0.6614]
[1751493810405,1.40817,2600.1,2599.4,0.6614]
[1751493810605,36.71188,2600.0,2599.8,0.76893]
[1751493810811,37.9992,2600.0,2599.8,0.76893]
[1751493811312,37.2303,2600.0,2599.9,0.76891]
[1751493811511,37.99918,2600.0,2599.9,0.76891]
[1751493811809,37.99918,2600.0,2599.5,1.92257]
[1751493812413,37.99918,2600.0,2599.9,0.76891]
[1751493812813,37.99918,2600.0,2599.8,0.76892]
[1751493813111,0.76898,2599.7,2599.6,0.769]
[1751493813312,35.976,2599.7,2599.6,0.769]
[1751493814207,0.76904,2599.5,2599.2,0.6586]
[1751493814411,35.973,2599.4,2599.3,0.76909]
[1751493814606,2.15662,2599.6,2599.4,0.76904]
[1751493814807,36.73304,2599.5,2599.2,0.6586]
[1751493815008,36.73304,2599.5,2599.3,0.76907]
[1751493816211,0.76906,2599.4,2599.2,1.4277]
[1751493816412,0.76906,2599.4,2599.3,0.76909]
[1751493816907,36.73305,2599.5,2599.4,0.76906]
[1751493817313,35.964,2599.5,2599.4,0.76906]
[1751493817612,36.73303,2599.5,2599.4,0.76906]
[1751493817916,38.13353,2599.5,2599.4,0.76906]
[1751493818211,0.76907,2599.4,2599.3,0.76908]
[1751493818407,0.76909,2599.3,2599.1,0.76913]
[1751493818613,0.7691,2599.3,2599.2,0.7691]
[1751493819208,2.1073,2599.3,2599.2,0.7691]
[1751493819609,1.3382,2599.3,2599.2,0.7691]
[1751493819913,2.10729,2599.3,2599.2,0.7691]
[1751493820113,0.76912,2599.2,2599.1,0.76913]
[1751493820414,2.10731,2599.3,2599.2,0.76912]
[1751493820915,1.3382,2599.3,2599.2,0.76912]
[1751493822215,0.6326,2599.4,2599.3,0.76909]
[1751493822416,36.5536,2599.4,2599.3,0.76909]
[1751493823519,6.02532831,2600.3,2598.9,0.6945]
[1751493823719,2.0512,2600.1,2600.0,0.76886]
[1751493824022,37.9812,2600.1,2600.0,0.76886]
[1751493825320,37.9802,2600.1,2600.0,0.76886]
[1751493826222,0.6349,2600.4,2600.3,0.76879]
[1751493826423,50.63040057,2600.4,2600.3,0.76879]
[1751493827116,51.39916057,2600.4,2600.3,0.76879]
[1751493827513,0.76884,2600.2,2600.1,0.76883]
[1751493827715,5.41370685,2600.2,2600.1,0.76883]
[1751493827916,52.47670685,2600.2,2600.1,0.76883]
[1751493828316,53.87640685,2600.2,2600.1,0.76883]
[1751493828520,54.64522685,2600.2,2600.1,0.76883]
[1751493829816,0.76894,2599.9,2599.6,2.28335694]
[1751493830019,0.76894,2599.9,2599.7,0.76897]
[1751493830020,35.916,2599.8,2599.7,0.76897]
[1751493830320,37.3157,2599.8,2599.7,0.76897]
[1751493831619,38.08464,2599.8,2599.7,0.76897]
[1751493832221,0.769,2599.6,2599.5,2.28335694]
[1751493832422,5.41370685,2599.6,2599.5,0.76901]
[1751493832622,16.54270685,2599.6,2599.5,0.76901]
[1751493832824,0.76898,2599.7,2599.6,0.769]
[1751493833026,48.3491,2599.7,2599.6,0.769]
[1751493833228,49.11807,2599.7,2599.6,0.769]
[1751493834025,0.6608,2599.8,2599.7,0.76897]
[1751493834227,0.76892,2599.9,2599.8,0.76892]
[1751493834416,47.80192,2599.9,2599.8,0.76892]
[1751493834622,47.81292,2599.9,2599.8,0.76892]
[1751493836526,2.0937,2600.0,2599.9,0.76891]
[1751493836728,0.76893,2599.9,2599.8,0.76892]
[1751493836929,2.04413,2599.9,2599.8,0.76892]
[1751493837229,6.18256685,2600.1,2600.0,0.76888]
[1751493837429,0.7689,2600.0,2599.9,0.76889]
[1751493837623,2.0441,2600.0,2599.9,0.76889]
[1751493838225,1.2752,2600.0,2599.9,0.76889]
[1751493838726,2.04408,2600.0,2599.9,0.76889]
[1751493839823,0.76894,2599.9,2599.8,0.76893]
[1751493840027,0.76897,2599.8,2599.7,0.76896]
[1751493840227,42.08967685,2599.8,2599.7,0.76896]
[1751493842626,0.76897,2599.7,2599.6,0.76898]
[1751493842930,2.11457,2599.7,2599.6,0.76898]
[1751493843328,0.76903,2599.5,2599.3,2.28335694]
[1751493843530,0.76909,2599.3,2599.2,1.4113]
[1751493844031,48.2858,2599.4,2599.3,0.76909]
[1751493844032,49.05489,2599.4,2599.3,0.76909]
[1751493844329,48.2858,2599.4,2599.3,0.76909]
[1751493844528,0.6623,2599.9,2599.2,0.6422]
[1751493844728,47.82196,2599.8,2599.7,0.76896]
[1751493845030,0.76897,2599.7,2599.6,0.76898]
[1751493845232,0.76901,2599.6,2599.5,0.76902]
[1751493845424,1.2698,2599.7,2599.6,0.769]
[1751493845630,47.056,2599.7,2599.6,0.769]
[1751493845830,47.82497,2599.7,2599.6,0.769]
[1751493846631,0.769,2599.6,2599.5,0.769]
[1751493847226,0.76903,2599.5,2599.4,0.76906]
[1751493847430,35.928,2599.5,2599.4,0.76906]
[1751493847632,2.61537,2600.1,2599.4,5.0]
[1751493847633,0.6932,2600.1,2599.4,5.0]
[1751493847927,0.76893,2599.9,2599.6,2.28335694]
[1751493848128,0.76891,2599.9,2599.8,0.76892]
[1751493848328,0.76891,2599.9,2599.7,0.76895]
[1751493849131,0.76894,2599.8,2599.7,0.76895]
[1751493849333,0.76898,2599.7,2599.6,0.76899]
[1751493849927,41.33570685,2599.8,2599.4,3.05240694]
[1751493850127,41.33570685,2599.8,2599.4,2.28335694]
[1751493850128,0.76902,2599.6,2599.4,2.28335694]
[1751493850333,48.4373,2599.5,2599.4,0.76903]
[1751493850630,47.05,2599.5,2599.3,2.28335694]
[1751493850827,47.05,2599.5,2599.2,2.28335694]
[1751493850828,0.76906,2599.4,2599.2,2.28335694]
[1751493851030,35.937,2599.3,2599.2,3.05247694]
[1751493851427,36.70609,2599.3,2599.2,2.28335694]
[1751493851626,36.70609,2599.3,2599.1,2.28335694]
[1751493851825,36.70609,2599.3,2599.1,3.05249694]
[1751493852025,0.76912,2599.2,2599.1,2.28335694]
[1751493852227,0.76912,2599.2,2599.0,3.05252694]
[1751493852428,37.2539,2599.3,2599.0,3.05252694]
[1751493852429,35.945,2599.1,2599.0,3.05252694]
[1751493852632,35.945,2599.1,2598.9,2.95805694]
[1751493852633,36.71415,2599.1,2598.9,2.95805694]
[1751493852832,36.71415,2599.1,2599.0,0.76918]
[1751493853131,0.76918,2599.0,2598.9,1.44389]
[1751493853334,0.76918,2599.0,2598.9,0.6747]
[1751493853335,2.08608,2599.0,2598.9,0.6747]
[1751493853528,2.08608,2599.0,2598.9,1.44391]
[1751493853731,0.76927,2598.7,2598.6,3.05263694]
[1751493853931,47.066,2598.7,2598.6,0.7693]
[1751493854126,47.066,2598.7,2598.5,2.91705694]
[1751493854127,47.066,2598.7,2598.5,2.28335694]
[1751493854332,0.76933,2598.5,2598.4,2.28335694]
[1751493854531,0.76936,2598.4,2598.3,0.76937]
[1751493854735,0.76939,2598.3,2598.2,2.28335694]
[1751493855030,0.76944,2598.1,2598.0,2.28335694]
[1751493855232,53.26614685,2598.1,2598.0,2.28335694]
[1751493855434,0.76947,2598.0,2597.9,2.28335694]
[1751493855631,2.08697,2598.0,2597.9,2.28335694]
[1751493855836,2.08697,2598.0,2597.8,0.76951]
[1751493856231,2.08697,2598.0,2597.9,0.7695]
[1751493856430,1.3175,2598.0,2597.9,0.7695]
[1751493856630,55.389,2598.5,2598.0,1.92364]
[1751493856833,47.085,2598.4,2598.3,0.76938]
[1751493857034,47.85436,2598.4,2598.2,0.76939]
[1751493857735,0.76946,2598.1,2597.5,2.93085694]
[1751493857939,36.74049,2598.0,2597.8,0.76952]
[1751493858139,0.7695,2597.9,2597.7,0.76954]
[1751493858549,0.76955,2597.8,2597.6,1.44657]
[1751493858746,36.73956,2597.7,2597.6,0.677]
[1751493858947,35.974,2597.7,2597.6,1.44657]
[1751493860545,35.974,2597.7,2597.6,0.677]
[1751493860740,0.76964,2597.5,2597.3,2.28335694]
[1751493860948,35.954,2597.4,2597.3,0.76968]
[1751493862041,35.954,2597.4,2596.4,2.28335694]
[1751493862042,101.77670685,2597.4,2596.4,2.28335694]
[1751493862248,5.41370685,2596.5,2596.3,2.28335694]
[1751493862443,0.76998,2596.3,2596.2,2.28335694]
[1751493862649,0.77005,2596.1,2595.9,0.77009]
[1751493862850,36.121,2596.0,2595.9,0.77009]
[1751493863251,1.39,2596.2,2596.0,0.77006]
[1751493863451,47.249,2596.1,2595.9,0.77008]
[1751493863651,2.16002,2596.2,2595.9,0.77008]
[1751493863852,47.246,2596.1,2595.9,0.77008]
[1751493864052,48.01604,2596.1,2595.8,1.46251]
[1751493864555,47.246,2596.1,2595.9,0.77009]
[1751493864752,1.39,2596.2,2596.0,0.77007]
[1751493864954,47.261,2596.1,2595.8,0.6924]
[1751493865146,0.77004,2596.1,2595.8,1.46251]
[1751493865453,47.243,2596.0,2595.9,0.7701]
[1751493865752,36.096,2596.0,2595.8,0.6924]
[1751493865948,60.82270685,2596.4,2596.1,0.77003]
[1751493866147,48.00198,2596.3,2596.0,0.77005]
[1751493866551,49.37898,2596.3,2596.0,0.77005]
[1751493867446,0.77001,2596.2,2596.0,0.77005]
[1751493867647,0.77008,2596.0,2595.8,0.6924]
[1751493867852,36.089,2595.9,2595.8,1.46252]
[1751493868054,36.089,2595.9,2595.8,0.6924]
[1751493868351,41.50270685,2595.9,2595.1,1.92583]
[1751493868549,2.03545,2595.8,2595.5,0.7702]
[1751493868854,11.91517,2595.7,2595.4,0.77023]
[1751493869054,36.87619,2595.6,2595.4,0.77023]
[1751493869258,41.51970685,2595.6,2595.4,0.77023]
[1751493869955,41.51970685,2595.6,2595.1,1.92584]
[1751493870151,36.1,2595.8,2595.5,0.77021]
[1751493870357,36.118,2595.8,2595.6,0.6358]
[1751493870549,36.118,2595.8,2595.7,0.77016]
[1751493871055,47.265,2595.8,2595.7,0.77016]
[1751493871555,47.275,2595.8,2595.7,0.77016]
[1751493872856,0.77008,2596.0,2595.8,0.77012]
[1751493873056,47.276,2595.9,2595.8,0.77013]
[1751493873956,0.77004,2596.1,2595.9,0.77008]
[1751493874158,47.266,2596.0,2595.9,0.77008]
[1751493875360,48.03607,2596.0,2595.9,0.77008]
[1751493875558,47.266,2596.0,2595.9,0.7701]